bitfinex/quotes_BTCUSD_20250803
["timestamp","ask_amount","ask_price","bid_price","bid_amount"]
[1754208619587,0.01523265,114030.0,114020.0,0.15787]
[1754208620003,0.01523265,114030.0,114020.0,0.184249]
[1754208621298,0.01523265,114030.0,114020.0,0.185249]
[1754208621515,0.01523265,114030.0,114020.0,0.188319]
[1754208622953,0.01523265,114030.0,114020.0,0.190299]
[1754208623125,0.05050997,114030.0,114020.0,0.190299]
[1754208625011,0.03677732,114030.0,114020.0,0.190299]
[1754208626021,0.05050939,114030.0,114020.0,0.190299]
[1754208627076,0.39050939,114030.0,114020.0,0.190299]
[1754208628062,0.39050939,114030.0,114020.0,0.056859]
[1754208628264,0.39050939,114030.0,114020.0,0.190179]
[1754208629347,0.39050939,114030.0,114020.0,0.1638]
[1754208629546,1.08561062,114030.0,114020.0,0.1638]
[1754208630832,0.39050939,114030.0,114020.0,0.1638]
[1754208631048,1.08561062,114030.0,114020.0,0.1638]
[1754208631305,1.09385037,114030.0,114020.0,0.1638]
[1754208632128,1.09385037,114030.0,114020.0,0.190179]
[1754208632940,1.0938505,114030.0,114020.0,0.190179]
[1754208634228,1.08011843,114030.0,114020.0,0.190179]
[1754208634652,1.08011843,114030.0,114020.0,0.056859]
[1754208634860,1.08011843,114030.0,114020.0,0.190099]
[1754208635041,1.08011843,114030.0,114020.0,0.16372]
[1754208635478,1.08011843,114030.0,114020.0,0.190099]
[1754208636241,1.08011843,114030.0,114020.0,0.16372]
[1754208636447,1.08011843,114030.0,114020.0,0.190099]
[1754208636975,1.08011843,114030.0,114020.0,0.16372]
[1754208637172,1.09385035,114030.0,114020.0,0.16372]
[1754208639037,1.09385008,114030.0,114020.0,0.16372]
[1754208639617,1.09385008,114030.0,114020.0,0.1617]
[1754208641326,0.39874885,114030.0,114020.0,0.1617]
[1754208641618,1.09385008,114030.0,114020.0,0.1617]
[1754208643581,1.09385008,114030.0,114020.0,0.16366]
[1754208644417,0.39874885,114030.0,114020.0,0.16366]
[1754208644635,1.09385008,114030.0,114020.0,0.1617]
[1754208647071,1.09385008,114030.0,114020.0,0.2307]
[1754208649166,0.75385008,114030.0,114020.0,0.23266]
[1754208649352,1.09385008,114030.0,114020.0,0.23266]
[1754208651507,1.08011816,114030.0,114020.0,0.23266]
[1754208654464,1.09385006,114030.0,114020.0,0.23266]
[1754208654850,1.08011816,114030.0,114020.0,0.23266]
[1754208656476,1.08011658,114030.0,114020.0,0.23266]
[1754208658249,0.38501535,114030.0,114020.0,0.23266]
[1754208658485,1.08011658,114030.0,114020.0,0.23266]
[1754208659230,0.39874729,114030.0,114020.0,0.23266]
[1754208659428,1.09384852,114030.0,114020.0,0.23266]
[1754208661254,0.39874694,114030.0,114020.0,0.23266]
[1754208661468,0.02196962,114030.0,114020.0,0.23266]
[1754208662147,0.71707085,114030.0,114020.0,0.23266]
[1754208662839,0.75364773,114030.0,114020.0,0.23266]
[1754208664980,0.73991579,114030.0,114020.0,0.23266]
[1754208665157,0.04481456,114030.0,114020.0,0.23266]
[1754208665380,0.73991579,114030.0,114020.0,0.23266]
[1754208665825,0.04481456,114030.0,114020.0,0.23266]
[1754208666042,0.73991579,114030.0,114020.0,0.23266]
[1754208666260,0.04481456,114030.0,114020.0,0.259039]
[1754208666461,0.73991579,114030.0,114020.0,0.259039]
[1754208666668,0.04481456,114030.0,114020.0,0.259039]
[1754208666913,0.73991575,114030.0,114020.0,0.259039]
[1754208667342,0.04481452,114030.0,114020.0,0.259039]
[1754208667561,0.75364753,114030.0,114020.0,0.259039]
[1754208668257,0.0585463,114030.0,114020.0,0.259039]
[1754208668463,0.75364753,114030.0,114020.0,0.259039]
[1754208668667,0.0585463,114030.0,114020.0,0.259039]
[1754208668877,0.75364753,114030.0,114020.0,0.259039]
[1754208669096,0.0585463,114030.0,114020.0,0.259039]
[1754208669528,0.55218324,114030.0,114020.0,0.259039]
[1754208669713,0.69510123,114030.0,114020.0,0.259039]
[1754208669933,0.70883285,114030.0,114020.0,0.259039]
[1754208670141,0.35373162,114030.0,114020.0,0.259039]
[1754208670370,1.04883285,114030.0,114020.0,0.259039]
[1754208671544,0.35373162,114030.0,114020.0,0.259039]
[1754208671901,1.04883285,114030.0,114020.0,0.259039]
[1754208672893,0.38866263,114030.0,114020.0,0.259039]
[1754208673175,1.08376386,114030.0,114020.0,0.259039]
[1754208674700,1.08376386,114030.0,114020.0,0.125839]
[1754208674886,1.08376386,114030.0,114020.0,0.259559]
[1754208676359,1.08376386,114030.0,114020.0,0.23318]
[1754208676801,0.38866263,114030.0,114020.0,0.23318]
[1754208677010,1.08376386,114030.0,114020.0,0.23318]
[1754208677239,0.38866263,114030.0,114020.0,0.23318]
[1754208677355,1.08376386,114030.0,114020.0,0.23318]
[1754208677795,0.38866263,114030.0,114020.0,0.23318]
[1754208678005,1.07003224,114030.0,114020.0,0.23318]
[1754208678438,0.37493101,114030.0,114020.0,0.23318]
[1754208678642,1.07003224,114030.0,114020.0,0.23318]
[1754208678859,0.37493101,114030.0,114020.0,0.23318]
[1754208679057,1.07003224,114030.0,114020.0,0.23318]
[1754208679792,1.07003224,114030.0,114020.0,0.259558]
[1754208681010,0.38866266,114030.0,114020.0,0.259558]
[1754208681216,1.08376389,114030.0,114020.0,0.259558]
[1754208681631,0.39690132,114030.0,114020.0,0.259558]
[1754208681848,1.09200255,114030.0,114020.0,0.259558]
[1754208682000,0.39690132,114030.0,114020.0,0.259558]
[1754208682223,1.09200255,114030.0,114020.0,0.259558]
[1754208682781,0.39690132,114030.0,114020.0,0.259558]
[1754208683081,1.09200255,114030.0,114020.0,0.259558]
[1754208684516,0.39690132,114030.0,114020.0,0.259558]
[1754208684732,1.09200255,114030.0,114020.0,0.259558]
[1754208685590,1.09200255,114030.0,114020.0,0.23318]
[1754208687101,1.09200237,114030.0,114020.0,0.23318]
[1754208687977,1.09200237,114030.0,114020.0,0.259558]
[1754208688178,1.07827072,114030.0,114020.0,0.259558]
[1754208688586,0.38316949,114030.0,114020.0,0.259558]
[1754208689281,1.07827072,114030.0,114020.0,0.259558]
[1754208689896,0.38316949,114030.0,114020.0,0.259558]
[1754208690058,1.07827072,114030.0,114020.0,0.259558]
[1754208690472,0.38316949,114030.0,114020.0,0.259558]
[1754208690944,1.07827072,114030.0,114020.0,0.259558]
[1754208691142,1.09200232,114030.0,114020.0,0.259558]
[1754208691324,1.09200228,114030.0,114020.0,0.259558]
[1754208692178,0.39690105,114030.0,114020.0,0.259558]
[1754208692390,1.09200228,114030.0,114020.0,0.259558]
[1754208693021,1.09200231,114030.0,114020.0,0.259558]
[1754208693445,0.39690108,114030.0,114020.0,0.259558]
[1754208693682,1.09200231,114030.0,114020.0,0.259558]
[1754208695289,0.39690108,114030.0,114020.0,0.259558]
[1754208695481,1.09200231,114030.0,114020.0,0.259558]
[1754208696137,0.39690108,114030.0,114020.0,0.259558]
[1754208696354,1.09200231,114030.0,114020.0,0.259558]
[1754208697167,1.09200231,114030.0,114020.0,0.190558]
[1754208697281,1.09200231,114030.0,114020.0,0.16418]
[1754208697681,0.39690108,114030.0,114020.0,0.16418]
[1754208697891,1.09200231,114030.0,114020.0,0.16418]
[1754208698126,1.07827071,114030.0,114020.0,0.16418]
[1754208698355,1.07827071,114030.0,114020.0,0.03046]
[1754208698607,1.07827071,114030.0,114020.0,0.16422]
[1754208700294,0.38316948,114030.0,114020.0,0.16422]
[1754208700507,1.07827071,114030.0,114020.0,0.16422]
[1754208701160,1.09200252,114030.0,114020.0,0.16422]
[1754208701671,0.39690129,114030.0,114020.0,0.16422]
[1754208701854,1.09200301,114030.0,114020.0,0.16422]
[1754208704696,0.39690178,114030.0,114020.0,0.16422]
[1754208705136,1.09200301,114030.0,114020.0,0.16422]
[1754208708199,0.38316997,114030.0,114020.0,0.16422]
[1754208708401,1.0782712,114030.0,114020.0,0.16422]
[1754208709753,0.38316997,114030.0,114020.0,0.16422]
[1754208710017,1.0782712,114030.0,114020.0,0.16422]
[1754208711185,1.09200288,114030.0,114020.0,0.16422]
[1754208712613,0.39690165,114030.0,114020.0,0.16422]
[1754208712818,1.09200288,114030.0,114020.0,0.16422]
[1754208713635,0.39690165,114030.0,114020.0,0.16422]
[1754208713846,1.09200288,114030.0,114020.0,0.16422]
[1754208714946,0.38316997,114030.0,114020.0,0.190598]
[1754208715386,1.0782712,114030.0,114020.0,0.190598]
[1754208715604,1.0782712,114030.0,114020.0,0.16422]
[1754208716350,0.38316997,114030.0,114020.0,0.16422]
[1754208716534,1.07827201,114030.0,114020.0,0.16422]
[1754208717435,0.38317078,114030.0,114020.0,0.16422]
[1754208717646,1.07827201,114030.0,114020.0,0.16422]
[1754208718393,0.38317078,114030.0,114020.0,0.16422]
[1754208718630,1.07827201,114030.0,114020.0,0.16422]
[1754208719260,1.09200361,114030.0,114020.0,0.16422]
[1754208719764,0.75200361,114030.0,114020.0,0.16422]
[1754208720204,0.05690238,114030.0,114020.0,0.16422]
[1754208720429,0.75200361,114030.0,114020.0,0.16422]
[1754208721731,0.05690238,114030.0,114020.0,0.16422]
[1754208722163,0.75200361,114030.0,114020.0,0.16422]
[1754208722662,0.05690238,114030.0,114020.0,0.16422]
[1754208722879,0.75200361,114030.0,114020.0,0.16422]
[1754208726330,0.7170726,114030.0,114020.0,0.16422]
[1754208726946,0.02197137,114030.0,114020.0,0.16422]
[1754208727139,0.7170726,114030.0,114020.0,0.16422]
[1754208728054,0.02197137,114030.0,114020.0,0.16422]
[1754208728282,0.703341,114030.0,114020.0,0.16422]
[1754208728423,0.00823977,114030.0,114020.0,0.16422]
[1754208728629,0.703341,114030.0,114020.0,0.16422]
[1754208728841,0.00823977,114030.0,114020.0,0.16422]
[1754208729052,0.634341,114030.0,114020.0,0.16422]
[1754208731495,0.64807303,114030.0,114020.0,0.16422]
[1754208732471,0.01373203,114030.0,114020.0,0.16422]
[1754208732657,0.70883326,114030.0,114020.0,0.16422]
[1754208734428,0.01373203,114030.0,114020.0,0.16422]
[1754208734633,0.70883326,114030.0,114020.0,0.16422]
[1754208735437,0.01373203,114030.0,114020.0,0.16422]
[1754208735655,0.70883326,114030.0,114020.0,0.16422]
[1754208736546,0.01373203,114030.0,114020.0,0.16422]
[1754208736763,0.70883326,114030.0,114020.0,0.16422]
[1754208737698,0.01373203,114030.0,114020.0,0.16422]
[1754208738112,0.70883326,114030.0,114020.0,0.16422]
[1754208741122,0.71707323,114030.0,114020.0,0.16422]
[1754208742493,0.021972,114030.0,114020.0,0.16422]
[1754208742936,0.71707323,114030.0,114020.0,0.16422]
[1754208744350,0.70883326,114030.0,114020.0,0.16422]
[1754208744564,0.71707322,114030.0,114020.0,0.16422]
[1754208744778,0.71707322,114030.0,114020.0,0.13476]
[1754208745008,0.72267119,114030.0,114020.0,0.13476]
[1754208745209,0.70334119,114030.0,114020.0,0.13476]
[1754208745440,0.70334119,114030.0,114020.0,0.16131]
[1754208745664,0.70334119,114030.0,114020.0,0.16434]
[1754208747044,0.00823996,114030.0,114020.0,0.16434]
[1754208747269,0.70334119,114030.0,114020.0,0.16434]
[1754208747830,0.00823996,114030.0,114020.0,0.16641]
[1754208748054,0.71707316,114030.0,114020.0,0.16641]
[1754208751496,0.02197193,114030.0,114020.0,0.16641]
[1754208751713,0.71707316,114030.0,114020.0,0.16641]
[1754208752373,0.02197193,114030.0,114020.0,0.16641]
[1754208752586,0.71707316,114030.0,114020.0,0.16641]
[1754208754952,0.70334119,114030.0,114020.0,0.16641]
[1754208757991,0.7170732,114030.0,114020.0,0.16641]
[1754208762159,0.02197197,114030.0,114020.0,0.16641]
[1754208762362,0.7170732,114030.0,114020.0,0.16641]
[1754208764570,0.71707322,114030.0,114020.0,0.16641]
[1754208767090,0.02197199,114030.0,114020.0,0.16641]
[1754208767308,0.71707322,114030.0,114020.0,0.16641]
[1754208767641,0.71707323,114030.0,114020.0,0.16641]
[1754208771485,0.021972,114030.0,114020.0,0.16641]
[1754208771648,0.52223638,114030.0,114020.0,0.16641]
[1754208772106,0.53596839,114030.0,114020.0,0.16641]
[1754208776766,0.70883324,114030.0,114020.0,0.16641]
[1754208777023,0.01373201,114030.0,114020.0,0.16641]
[1754208777211,0.70883324,114030.0,114020.0,0.16641]
[1754208779146,0.01373201,114030.0,114020.0,0.16641]
[1754208779355,0.70883324,114030.0,114020.0,0.16641]
[1754208780784,0.01373201,114030.0,114020.0,0.16641]
[1754208780992,0.70883324,114030.0,114020.0,0.16641]
[1754208782463,0.70883324,114030.0,114020.0,0.03265]
[1754208782672,0.70883324,114030.0,114020.0,0.16633]
[1754208782866,0.01373201,114030.0,114020.0,0.16633]
[1754208783072,0.70883324,114030.0,114020.0,0.16633]
[1754208784971,0.01373201,114030.0,114020.0,0.16633]
[1754208785194,1.48085761,114030.0,114020.0,0.001]
[1754208785427,1.42385447,114030.0,114020.0,0.13468]
[1754208785644,0.72875324,114030.0,114020.0,0.13468]
[1754208787036,0.72875324,114030.0,114020.0,0.001]
[1754208787235,0.72875324,114030.0,114020.0,0.13472]
[1754208787841,0.72875324,114030.0,114020.0,0.13468]
[1754208791307,0.01373201,114030.0,114020.0,0.16768]
[1754208791519,0.70883324,114030.0,114020.0,0.16768]
[1754208795580,0.71707038,114030.0,114020.0,0.16768]
[1754208796121,0.02196915,114030.0,114020.0,0.16768]
[1754208796321,0.71707038,114030.0,114020.0,0.16768]
[1754208796728,0.02196915,114030.0,114020.0,0.16768]
[1754208796944,0.71707038,114030.0,114020.0,0.16768]
[1754208802216,0.02196915,114030.0,114020.0,0.16768]
[1754208802470,0.71707038,114030.0,114020.0,0.16768]
[1754208802704,0.02196915,114030.0,114020.0,0.16768]
[1754208803179,0.71707038,114030.0,114020.0,0.16768]
[1754208804253,0.71707043,114030.0,114020.0,0.16768]
[1754208807812,0.0219692,114030.0,114020.0,0.16768]
[1754208808037,0.71707043,114030.0,114020.0,0.16768]
[1754208809544,0.0219692,114030.0,114020.0,0.16768]
[1754208809757,0.71707043,114030.0,114020.0,0.16768]
[1754208812844,0.71707156,114030.0,114020.0,0.16768]
[1754208813701,0.02197033,114030.0,114020.0,0.16768]
[1754208813912,0.71707156,114030.0,114020.0,0.16768]
[1754208815047,0.02197033,114030.0,114020.0,0.16768]
[1754208816052,0.02197033,114030.0,114020.0,0.86278123]
[1754208818979,0.02197033,114030.0,114020.0,0.16768]
[1754208819947,0.02197033,114030.0,114020.0,0.86278123]
[1754208820362,0.02197033,114030.0,114020.0,0.16768]
[1754208820575,0.02197033,114030.0,114020.0,0.86278123]
[1754208820789,0.02197033,114030.0,114020.0,0.16768]
[1754208820997,0.00823832,114030.0,114020.0,0.86278123]
[1754208821216,0.00823832,114030.0,114020.0,0.16768]
[1754208821419,0.70333955,114030.0,114020.0,0.16768]
[1754208821636,0.00823832,114030.0,114020.0,0.16768]
[1754208821847,0.00823832,114030.0,114020.0,0.86278123]
[1754208823072,0.00823832,114030.0,114020.0,0.16768]
[1754208823273,0.00823832,114030.0,114020.0,0.86278123]
[1754208823879,0.02197015,114030.0,114020.0,0.86278123]
[1754208824728,0.02197015,114030.0,114020.0,0.16768]
[1754208824935,0.02197015,114030.0,114020.0,0.86278123]
[1754208825370,0.00823832,114030.0,114020.0,0.16768]
[1754208828465,0.70333955,114030.0,114020.0,0.16768]
[1754208829578,0.71707188,114030.0,114020.0,0.16768]
[1754208831864,0.53278183,114030.0,114020.0,0.16768]
[1754208835311,0.01373233,114030.0,114020.0,0.16768]
[1754208839902,0.01373233,114030.0,114020.0,0.86278123]
[1754208841264,0.01373233,114030.0,114020.0,0.16768]
[1754208841470,0.01373233,114030.0,114020.0,0.86278123]
[1754208842698,0.01373233,114030.0,114020.0,0.16768]
[1754208842904,0.01373233,114030.0,114020.0,0.86278123]
[1754208844108,0.01373233,114030.0,114020.0,0.16768]
[1754208844353,0.01373233,114030.0,114020.0,0.86278123]
[1754208845839,0.01373233,114030.0,114020.0,0.16768]
[1754208846017,0.01373233,114030.0,114020.0,0.86278123]
[1754208846677,0.01373233,114030.0,114020.0,0.16768]
[1754208846925,0.01373233,114030.0,114020.0,0.86278123]
[1754208847421,0.01373233,114030.0,114020.0,0.16768]
[1754208847573,0.01373233,114030.0,114020.0,0.86278123]
[1754208847786,0.01373233,114030.0,114020.0,0.16768]
[1754208848002,0.01373233,114030.0,114020.0,0.86278123]
[1754208848966,0.01373233,114030.0,114020.0,0.16768]
[1754208849171,0.01373233,114030.0,114020.0,0.86278123]
[1754208857998,0.01373233,114030.0,114020.0,0.16768]
[1754208858148,0.01373233,114030.0,114020.0,0.86278123]
[1754208859096,0.01373233,114030.0,114020.0,0.16768]
[1754208859310,0.01373233,114030.0,114020.0,0.86278123]
[1754208861135,0.02197214,114030.0,114020.0,0.86278123]
[1754208861545,0.02197214,114030.0,114020.0,0.72910123]
[1754208861678,0.02197214,114030.0,114020.0,0.86406123]
[1754208863428,0.02197214,114030.0,114020.0,0.16896]
[1754208864084,0.02197214,114030.0,114020.0,0.86406123]
[1754208865711,0.02197214,114030.0,114020.0,0.16896]
[1754208865918,0.02197214,114030.0,114020.0,0.86406123]
[1754208868049,0.02197214,114030.0,114020.0,0.16896]
[1754208868257,0.02197214,114030.0,114020.0,0.86406123]
[1754208871150,0.02197214,114030.0,114020.0,0.16896]
[1754208871361,0.02197214,114030.0,114020.0,0.86406123]
[1754208871859,0.02197214,114030.0,114020.0,0.16896]
[1754208872068,0.02197214,114030.0,114020.0,0.86406123]
[1754208872669,0.02197214,114030.0,114020.0,0.16896]
[1754208872876,0.02197214,114030.0,114020.0,0.86406123]
[1754208873718,0.02197111,114030.0,114020.0,0.86406123]
[1754208874334,0.02197111,114030.0,114020.0,0.16896]
[1754208874537,0.02197111,114030.0,114020.0,0.86406123]
[1754208876191,0.02197111,114030.0,114020.0,0.16896]
[1754208876417,0.02197111,114030.0,114020.0,0.86406123]
[1754208876806,0.02197111,114030.0,114020.0,0.16896]
[1754208876960,0.02197111,114030.0,114020.0,0.86406123]
[1754208880229,0.02197111,114030.0,114020.0,0.16896]
[1754208880441,0.02197111,114030.0,114020.0,0.86406123]
[1754208881842,0.02197111,114030.0,114020.0,0.16896]
[1754208882064,0.02197111,114030.0,114020.0,0.86406123]
[1754208883957,0.02197111,114030.0,114020.0,0.16896]
[1754208884134,0.02197111,114030.0,114020.0,0.86406123]
[1754208890269,0.02197111,114030.0,114020.0,0.16896]
[1754208890477,0.02197111,114030.0,114020.0,0.86406123]
[1754208896216,0.02197111,114030.0,114020.0,0.16896]
[1754208896410,0.02197111,114030.0,114020.0,0.86406123]
[1754208900003,0.02197111,114030.0,114020.0,0.16896]
[1754208900412,0.02197111,114030.0,114020.0,0.86406123]
[1754208901120,0.02197169,114030.0,114020.0,0.86406123]
[1754208901968,0.02197169,114030.0,114020.0,0.16896]
[1754208902190,0.02197169,114030.0,114020.0,0.86406123]
[1754208903060,0.02197169,114030.0,114020.0,0.16896]
[1754208903293,0.02197169,114030.0,114020.0,0.86406123]
[1754208903817,0.0219718,114030.0,114020.0,0.86406123]
[1754208905334,0.0219718,114030.0,114020.0,0.16896]
[1754208905550,0.0219718,114030.0,114020.0,0.86406123]
[1754208906753,0.0219718,114030.0,114020.0,0.16896]
[1754208906990,0.0219718,114030.0,114020.0,0.86406123]
[1754208909135,0.0219718,114030.0,114020.0,0.16896]
[1754208909337,0.0219718,114030.0,114020.0,0.86406123]
[1754208911122,0.0219718,114030.0,114020.0,0.16896]
[1754208911340,0.0219718,114030.0,114020.0,0.86406123]
[1754208912702,0.0219718,114030.0,114020.0,0.16896]
[1754208912999,0.0219718,114030.0,114020.0,0.86406123]
[1754208913436,2.867357,114030.0,114020.0,0.86406123]
[1754208913842,0.01373226,114030.0,114020.0,0.86406123]
[1754208914685,0.01373226,114030.0,114020.0,0.16896]
[1754208914908,0.01373226,114030.0,114020.0,0.86406123]
[1754208916360,0.04000422,114030.0,114020.0,0.86406123]
[1754208917695,0.06509078,114030.0,114020.0,0.86406123]
[1754208917913,0.04000422,114030.0,114020.0,0.86406123]
[1754208923419,0.04000422,114030.0,114020.0,0.16896]
[1754208923610,0.01373226,114030.0,114020.0,0.16896]
[1754208923821,0.07570284,114030.0,114020.0,0.16896]
[1754208924237,0.07570284,114030.0,114020.0,0.86406123]
[1754208924829,0.0383203,114030.0,114020.0,0.86406123]
[1754208927208,0.01373226,114030.0,114020.0,0.86406123]
[1754208929135,0.01373226,114030.0,114020.0,0.16896]
[1754208929372,0.01373226,114030.0,114020.0,0.86406123]
[1754208929807,0.0383203,114030.0,114020.0,0.86406123]
[1754208930397,0.0383203,114030.0,114020.0,0.16896]
[1754208930827,0.0383203,114030.0,114020.0,0.86406123]
[1754208931721,0.01373226,114030.0,114020.0,0.86406123]
[1754208934033,0.02197179,114030.0,114020.0,0.86406123]
[1754208934747,0.02197179,114030.0,114020.0,0.16896]
[1754208935167,0.02197179,114030.0,114020.0,0.86406123]
[1754208936121,0.02197179,114030.0,114020.0,0.16896]
[1754208936328,0.02197179,114030.0,114020.0,0.86406123]
[1754208937289,0.02197179,114030.0,114020.0,0.16896]
[1754208937491,0.02197179,114030.0,114020.0,0.86406123]
[1754208943388,0.02197179,114030.0,114020.0,0.16896]
[1754208943653,0.06017828,114030.0,114020.0,0.86406123]
[1754208944085,0.02197179,114030.0,114020.0,0.86406123]
[1754208948154,0.02197179,114030.0,114020.0,0.16896]
[1754208948327,0.02197179,114030.0,114020.0,0.86406123]
[1754208954940,0.02197179,114030.0,114020.0,0.16896]
[1754208955350,0.02197179,114030.0,114020.0,0.86406123]
[1754208956192,0.02197179,114030.0,114020.0,0.16896]
[1754208956408,0.02197179,114030.0,114020.0,0.86406123]
[1754208960477,0.02197179,114030.0,114020.0,0.16896]
[1754208960618,0.02197179,114030.0,114020.0,0.86406123]
[1754208961382,0.02197179,114030.0,114020.0,0.16896]
[1754208961581,0.02197179,114030.0,114020.0,0.86406123]
[1754208963103,0.02197189,114030.0,114020.0,0.86406123]
[1754208964539,0.00823963,114030.0,114020.0,0.86406123]
[1754208964748,2.867357,114030.0,114020.0,0.86406123]
[1754208971602,2.867357,114030.0,114020.0,0.16896]
[1754208971812,2.867357,114030.0,114020.0,0.86406123]
[1754208972236,0.04703601,114030.0,114020.0,0.86406123]
[1754208972419,0.20997776,114040.0,114020.0,0.86406123]
[1754208972745,2.867357,114030.0,114020.0,0.72910123]
[1754208972951,2.867357,114030.0,114020.0,0.86338123]
[1754208973233,2.867357,114030.0,114020.0,0.16728]
[1754208973440,2.867357,114030.0,114020.0,0.86238123]
[1754208974815,2.867357,114030.0,114020.0,0.86338123]
[1754208975049,2.91741109,114030.0,114020.0,0.16728]
[1754208975260,0.74515532,114030.0,114020.0,0.13428]
[1754208975484,0.06736409,114030.0,114020.0,0.13428]
[1754208975693,0.05005409,114030.0,114020.0,0.13428]
[1754208975902,0.05005409,114030.0,114020.0,0.16411]
[1754208976557,0.05005409,114030.0,114020.0,0.16711]
[1754208976755,0.05829274,114030.0,114020.0,0.03283]
[1754208976970,0.05829274,114030.0,114020.0,0.16711]
[1754208978521,0.00823865,114030.0,114020.0,0.1692]
[1754208978746,0.00823766,114030.0,114020.0,0.1692]
[1754208979231,0.00823766,114030.0,114020.0,0.86530123]
[1754208979575,0.00823766,114030.0,114020.0,0.86430123]
[1754208979988,0.00823766,114030.0,114020.0,0.86630123]
[1754208980193,0.00823766,114030.0,114020.0,0.17128]
[1754208980438,0.00823766,114030.0,114020.0,0.86638123]
[1754208982198,0.02196974,114030.0,114020.0,0.86638123]
[1754208986407,0.02196974,114030.0,114020.0,0.17128]
[1754208986628,0.02196974,114030.0,114020.0,0.86638123]
[1754208988527,0.00823766,114030.0,114020.0,0.17128]
[1754208989219,0.00823766,114030.0,114020.0,0.86638123]
[1754208990785,0.00823766,114030.0,114020.0,0.17128]
[1754208990987,0.02196988,114030.0,114020.0,0.86638123]
[1754208994332,0.02196872,114030.0,114020.0,0.86638123]
[1754208998604,0.0082365,114030.0,114020.0,0.86638123]
[1754208999850,2.867357,114030.0,114020.0,0.17128]
[1754209000058,2.867357,114030.0,114020.0,0.86638123]
[1754209001265,0.01373187,114030.0,114020.0,0.86638123]
[1754209005622,0.01373187,114030.0,114020.0,0.17128]
[1754209006134,0.01373187,114030.0,114020.0,0.86638123]
[1754209008576,0.1844824,114040.0,114020.0,0.86638123]
[1754209008785,2.867357,114030.0,114020.0,0.70219123]
[1754209008991,2.867357,114030.0,114020.0,0.83651123]
[1754209009593,2.867357,114030.0,114020.0,0.86521123]
[1754209010968,0.01373193,114030.0,114020.0,0.86521123]
[1754209011795,0.02196949,114030.0,114020.0,0.86321123]
[1754209012002,0.02196949,114030.0,114020.0,0.86421123]
[1754209012591,0.02196949,114030.0,114020.0,0.86321123]
[1754209013038,0.02196949,114030.0,114020.0,0.86521123]
[1754209013486,0.02196955,114030.0,114020.0,0.86521123]
[1754209017568,0.04261474,114030.0,114020.0,0.83617521]
[1754209017777,2.867357,114030.0,114020.0,0.83813521]
[1754209017921,2.867357,114030.0,114020.0,0.86208123]
[1754209018136,2.867357,114040.0,114020.0,0.86208123]
[1754209018371,2.86740466,114040.0,114030.0,0.82934123]
[1754209018537,2.86938466,114040.0,114030.0,0.85804123]
[1754209019380,2.86938466,114040.0,114030.0,0.16294]
[1754209020243,2.88879266,114040.0,114030.0,0.16394]
[1754209020873,2.97763022,114040.0,114030.0,0.16394]
[1754209021079,2.99136178,114040.0,114030.0,0.16394]
[1754209025918,2.77982978,114040.0,114030.0,0.16394]
[1754209026900,2.69099222,114040.0,114030.0,0.16394]
[1754209027526,2.67726066,114040.0,114030.0,0.16394]
[1754209029775,2.68549988,114040.0,114030.0,0.16394]
[1754209030415,2.69923145,114040.0,114030.0,0.16394]
[1754209031322,0.02197079,114040.0,114030.0,0.16394]
[1754209031573,2.53201964,114040.0,114030.0,0.16394]
[1754209034683,2.61715871,114040.0,114030.0,0.16394]
[1754209038566,2.60342714,114040.0,114030.0,0.16394]
[1754209040686,2.51828807,114040.0,114030.0,0.16394]
[1754209041139,2.53201966,114040.0,114030.0,0.16394]
[1754209046707,2.53201966,114040.0,114030.0,0.1661]
[1754209047148,2.51828807,114040.0,114030.0,0.86120123]
[1754209050206,2.53201966,114040.0,114030.0,0.86120123]
[1754209054525,2.5320202,114040.0,114030.0,0.86120123]
[1754209054937,2.51828861,114040.0,114030.0,0.86120123]
[1754209055952,2.51828861,114040.0,114030.0,0.1661]
[1754209056195,2.51828861,114040.0,114030.0,0.86120123]
[1754209059114,2.51828862,114040.0,114030.0,0.86120123]
[1754209059321,2.53202015,114040.0,114030.0,0.86120123]
[1754209064961,2.51828862,114040.0,114030.0,0.86120123]
[1754209069338,2.53202051,114040.0,114030.0,0.86120123]
[1754209070598,2.5320205,114040.0,114030.0,0.86120123]
[1754209072754,2.5320205,114040.0,114030.0,0.1661]
[1754209072956,2.5320205,114040.0,114030.0,0.86120123]
[1754209074020,2.62085806,114040.0,114030.0,0.1661]
[1754209074250,2.62085806,114040.0,114030.0,0.86120123]
[1754209074470,2.62085806,114040.0,114030.0,0.1661]
[1754209074689,2.62085806,114040.0,114030.0,0.86120123]
[1754209075132,2.60712617,114040.0,114030.0,0.86120123]
[1754209076444,2.51828861,114040.0,114030.0,0.86120123]
[1754209077993,2.53202015,114040.0,114030.0,0.86120123]
[1754209079167,2.52378039,114040.0,114030.0,0.86120123]
[1754209079368,2.53202011,114040.0,114030.0,0.86120123]
[1754209084912,2.51828857,114040.0,114030.0,0.86120123]
[1754209088091,2.53202002,114040.0,114030.0,0.86120123]
[1754209089851,2.53201669,114040.0,114030.0,0.86120123]
[1754209091374,2.53201669,114040.0,114030.0,1.55630246]
[1754209092024,2.53201669,114040.0,114030.0,0.86120123]
[1754209094904,2.51828524,114040.0,114030.0,0.86120123]
[1754209095915,2.51828524,114040.0,114030.0,0.1661]
[1754209096157,2.51828524,114040.0,114030.0,0.86120123]
[1754209097939,2.53201622,114040.0,114030.0,0.86120123]
[1754209104994,2.51828524,114040.0,114030.0,0.86120123]
[1754209107264,2.51827968,114040.0,114030.0,0.86120123]
[1754209107978,2.53201071,114040.0,114030.0,0.86120123]
[1754209113037,2.53201214,114040.0,114030.0,0.86120123]
[1754209113486,2.53151214,114040.0,114030.0,0.86120123]
[1754209114901,2.51778111,114040.0,114030.0,0.86120123]
[1754209115102,2.51778111,114040.0,114030.0,0.1661]
[1754209115332,2.51778111,114040.0,114030.0,0.86120123]
[1754209115536,2.51778111,114040.0,114030.0,0.1661]
[1754209115746,2.51778111,114040.0,114030.0,0.86120123]
[1754209118110,2.53151209,114040.0,114030.0,0.86120123]
[1754209119191,2.53151209,114040.0,114030.0,0.1661]
[1754209119403,2.53151209,114040.0,114030.0,0.86120123]
[1754209119961,2.53151209,114040.0,114030.0,0.1661]
[1754209120172,2.53151209,114040.0,114030.0,0.86120123]
[1754209123120,2.53151209,114040.0,114030.0,0.1661]
[1754209123324,2.53151209,114040.0,114030.0,0.86120123]
[1754209125013,2.51778111,114040.0,114030.0,0.86120123]
[1754209127823,2.51778743,114040.0,114030.0,0.86120123]